fUSD/lending_fUSD_20240701
["ID","MTS","AMOUNT","RATE_DAILY","PERIOD"]
[330859002,1719871838475,-431.833234,0.00020592,2]
[330859003,1719871838485,-299.858593,0.00020592,2]
[330859004,1719871838495,-519.956972,0.00020592,2]
[330859005,1719871838504,-431.833235,0.00020592,2]
[330859006,1719871838514,-299.858594,0.00020592,2]
[330859007,1719871838524,-301.027721,0.00020592,2]
[330859008,1719871838534,-154.79,0.00020605,2]
[330859009,1719871838543,-10000.0,0.0002083,2]
[330859010,1719871838553,-414.28,0.00020832,2]
[330859011,1719871838562,-288.601762,0.0002085,2]
[330859012,1719871838571,-179.915156,0.0002085,2]
[330859013,1719871838581,-431.833234,0.0002085,2]
[330859014,1719871838590,-299.858593,0.0002085,2]
[330859015,1719871838600,-519.956972,0.0002085,2]
[330859016,1719871838609,-431.833235,0.0002085,2]
[330859017,1719871838618,-299.858594,0.0002085,2]
[330859018,1719871838630,-301.027721,0.0002085,2]
[330859019,1719871838639,-179.039341,0.00020936,2]
[330859020,1719871838649,-225.19167095,0.00021,2]
[330859021,1719871838660,-288.601762,0.00021107,2]
[330859022,1719871838670,-179.915156,0.00021107,2]
[330859023,1719871838679,-431.833234,0.00021107,2]
[330859024,1719871838689,-299.858593,0.00021107,2]
[330859025,1719871838698,-519.956972,0.00021107,2]
[330859026,1719871838708,-431.833235,0.00021107,2]
[330859027,1719871838717,-299.858594,0.00021107,2]
[330859028,1719871838726,-301.027721,0.00021107,2]
[330859029,1719871838736,-199.905729,0.00021107,2]
[330859030,1719871838745,-179.039341,0.00021279,2]
[330859031,1719871838754,-288.601762,0.00021365,2]
[330859032,1719871838764,-179.915156,0.00021365,2]
[330859033,1719871838774,-431.833234,0.00021365,2]
[330859034,1719871838783,-299.858593,0.00021365,2]
[330859035,1719871838792,-519.956972,0.00021365,2]
[330859036,1719871838802,-431.833235,0.00021365,2]
[330859037,1719871838811,-299.858594,0.00021365,2]
[330859038,1719871838821,-301.027721,0.00021365,2]
[330859039,1719871838830,-2682.0,0.000216,3]
[330859040,1719871838840,-833.0,0.000216,3]
[330859041,1719871838849,-288.601762,0.00021622,2]
[330859042,1719871838859,-179.915156,0.00021622,2]
[330859043,1719871838868,-431.833234,0.00021622,2]
[330859044,1719871838879,-299.858593,0.00021622,2]
[330859045,1719871838889,-519.956972,0.00021622,2]
[330859046,1719871838902,-431.833235,0.00021622,2]
[330859047,1719871838912,-299.858594,0.00021622,2]
[330859048,1719871838921,-301.027721,0.00021622,2]
[330859049,1719871838931,-199.905729,0.00021622,2]
[330859050,1719871838940,-179.039341,0.00021622,2]
[330859051,1719871838949,-165.71,0.00021644,2]
[330859052,1719871838959,-1000.0,0.00021817,2]
[330859053,1719871838969,-812.0,0.00021825,2]
[330859054,1719871838978,-358.0,0.00021888,2]
[330859055,1719871838988,-1820.0,0.00021888,2]
[330859056,1719871838998,-442.0,0.00021888,2]
[330859057,1719871839008,-618.0,0.00021888,2]
[330859058,1719871839017,-166.0,0.00021888,2]
[330859059,1719871839026,-448.0,0.00021888,2]
[330859060,1719871839036,-656.01998546,0.00021888,2]
[330859064,1719871839838,-636.62896853,0.0002083,2]
[330859065,1719871840174,-653.51103147,0.0002083,2]
[330859066,1719871840183,-1751.98001454,0.00021888,2]
[330859067,1719871840192,-1293.0,0.00021888,2]
[330859068,1719871840207,-480.89151682,0.000219,9]
[330859069,1719871840219,-639.10848318,0.000219,9]
[330859070,1719871840228,-490.39151482,0.00021917,4]
[330859071,1719871840245,-37.87848518,0.00021917,4]
[330859072,1719871840254,-528.27,0.00021917,4]
[330859073,1719871840263,-92.24151482,0.00021917,4]
[330859074,1719871840275,-436.02848518,0.00021917,4]
[330859075,1719871840286,-528.27,0.00021917,4]
[330859077,1719871840295,-528.27,0.00021917,4]
[330859078,1719871840305,-528.27,0.00021917,4]
[330859080,1719871840314,-398.22128176,0.00021917,4]
[330859081,1719871840326,-130.04871824,0.00021917,4]
[330859082,1719871840335,-528.27,0.00021917,4]
[330859083,1719871840344,-500.0,0.00021917,4]
[330859084,1719871840355,-23.7522703,0.00021917,4]
[330859085,1719871840366,-476.2477297,0.00021917,4]
[330859086,1719871840375,-278.4809413,0.00021917,4]
[330859137,1719871845675,-155.0,0.00018999,2]
[330859139,1719871845684,-533.17,0.00021252,30]
[330859140,1719871845694,-221.5190587,0.00021917,4]
[330859142,1719871845703,-500.0,0.00021917,4]
[330859143,1719871845712,-500.0,0.00021917,4]
[330859145,1719871845722,-500.0,0.00021917,4]
[330859146,1719871845731,-298.3109413,0.00021917,4]
[330859150,1719871845776,-196.43824604,0.00021917,4]
[330859151,1719871845786,-388.30175396,0.00021918,2]
[330859159,1719871845882,-137.83824604,0.00021918,2]
[330859161,1719871845892,-151.55,0.00021918,2]
[330859162,1719871845902,-150.21,0.00021918,2]
[330859164,1719871845911,-265.80175396,0.00021971,2]
[330859948,1719871946698,-300.0,0.00019725,2]
[330859949,1719871946723,-227.0716558,0.0001999,2]
[330859950,1719871946744,-310.0,0.0001999,2]
[330859951,1719871946766,-155.0,0.0001999,2]
[330859952,1719871946787,-217.90047204,0.0001999,2]
[330859953,1719871946808,-155.0,0.00019997,2]
[330859954,1719871972399,235.529,0.00018912,2]
[330859955,1719871994434,155.0,0.00019997,2]
[330859957,1719871999535,201.87180983,0.00019997,2]
[330859959,1719872112590,430.43,0.00018995,2]
[330859961,1719872140450,155.0,0.00018995,2]
[330859964,1719872228436,191.13133498,0.00018995,2]
[330859965,1719872329636,-264.47763332,0.00019863,2]
[330859966,1719872432613,-1000.0,0.00020471,2]
[330859967,1719872432636,-1000.0,0.00020474,2]
[330859968,1719872432658,-266.261514,0.00020592,2]
[330859969,1719872432679,-195.907614,0.00020592,2]
[330859970,1719872432702,-164.196938,0.00020592,2]
[330859971,1719872432725,-618.889676,0.00020592,2]
[330859972,1719872432748,-471.777521,0.00020592,2]
[330859973,1719872432769,-492.590816,0.00020592,2]
[330859974,1719872432791,-180.108749,0.00020592,2]
[330859975,1719872432812,-179.915157,0.00020592,2]
[330859976,1719872432832,-1000.0,0.00020738,2]
[330859977,1719872432854,-250.0,0.00020815,2]
[330859978,1719872432876,-499.99,0.00020815,2]
[330859979,1719872432898,-770.33,0.00020825,2]
[330859980,1719872432919,-10000.0,0.0002083,2]
[330859981,1719872432941,-826.09,0.0002083,2]
[330859982,1719872432963,-488.73,0.0002084,30]
[330859983,1719872432997,-266.261514,0.0002085,2]
[330859984,1719872433022,-195.907614,0.0002085,2]
[330859985,1719872433044,-164.196938,0.0002085,2]
[330859986,1719872433066,-618.889676,0.0002085,2]
[330859987,1719872433089,-471.777521,0.0002085,2]
[330859988,1719872433111,-492.590816,0.0002085,2]
[330859989,1719872433134,-272.77,0.00020853,2]
[330859990,1719872433158,-172.1,0.00020856,2]
[330859991,1719872433180,-250.0,0.0002086,2]
[330859992,1719872433205,-180.108749,0.00020936,2]
[330859993,1719872433228,-225.19167095,0.00021,2]
[330859994,1719872433251,-1250.0,0.00021,2]
[330859995,1719872433275,-1180.46348739,0.00021,22]
[330859997,1719873034233,-443.23,0.00018994,2]
[330859998,1719873034243,-4086.16909923,0.0001935,2]
[330859999,1719873034253,-3030.26518604,0.00019352,2]
[330860000,1719873034262,-5753.6843837,0.00019352,2]
[330860002,1719873034272,-3398.22978452,0.00019354,2]
[330860005,1719873034281,-625.50090201,0.00019389,2]
[330860006,1719873034292,-526.2798675,0.00019389,2]
[330860009,1719873034302,-720.09204165,0.00019389,2]
[330860011,1719873034311,-530.19091771,0.00019389,2]
[330860013,1719873034320,-235.00896897,0.00019399,2]
[330860016,1719873034330,-308.12292157,0.00019399,2]
[330860018,1719873034339,-366.11090361,0.00019399,2]
[330860019,1719873034349,-975.23501743,0.00019399,2]
[330860021,1719873034360,-364.46359716,0.00019399,2]
[330860023,1719873034370,-155.0,0.00019725,60]
[330860024,1719873034379,-154.21925,0.00020592,2]
[330860026,1719873034389,-250.0,0.00020601,2]
[330860027,1719873034402,-798.18,0.00020776,2]
[330860028,1719873034412,-448.0,0.00020806,30]
[330860029,1719873034421,-250.0,0.00020828,2]
[330860030,1719873034433,-500.0,0.00020869,2]
[330860031,1719873034442,-250.0,0.00020887,2]
[330860032,1719873034451,-149.18126768,0.00020907,2]
[330860033,1719873034463,-1261.70003632,0.00020907,2]
[330860038,1719873038023,-1001.43704048,0.0002083,2]
[330860650,1719873043959,-739.28642573,0.0001925,2]
[330860652,1719873043969,-1782.76761427,0.0002083,2]
[330860679,1719873044208,-630.74011,0.0002083,2]
[330860720,1719873046423,-1717.225,0.0002083,2]
[330860721,1719873046435,-1573.025,0.0002083,2]
[330861029,1719873352916,205.0,9.8e-05,2]
[330861034,1719873436593,1838.84357313,9.8e-05,2]
[330861037,1719873782739,294.35540424,0.00011199,2]
[330861038,1719873897712,517.70837826,0.00011199,2]
[330861046,1719874232225,-498.27774161,0.00013574,2]
[330861047,1719874232237,-188.71393625,0.0001399,2]
[330861048,1719874232248,-1030.98382353,0.00013999,2]
[330861049,1719874232259,-13047.28095961,0.00014,2]
[330861050,1719874232271,-3142.12564769,0.00014,2]
[330861051,1719874232379,-21616.54762948,0.00014,2]
[330861052,1719874232551,-394.95499992,0.00014,2]
[330861053,1719874232563,-620.99,0.00014,2]
[330861087,1719874238220,-515.95190762,0.00014,2]
[330861088,1719874238235,-7321.52880583,0.00014,2]
[330861089,1719874238248,-11362.50358504,0.00014,2]
[330861090,1719874238260,-1119.95985758,0.00014,2]
[330861091,1719874240696,-32.97685647,0.00014,2]
[330861092,1719874240708,-532.55345545,0.00014,2]
[330861095,1719874243564,-1261.57818012,0.00014,2]
[330861096,1719874243577,-3147.72275675,0.00014,2]
[330861119,1719874589838,150.5,0.0001399,30]
[330861120,1719874590318,271.5,0.0001398,30]
[330861139,1719875432341,-381.69396082,0.00013128,2]
[330861140,1719875432353,-2485.737416,0.00013128,2]
[330861141,1719875432366,-2746.4480408,0.00013604,2]
[330861142,1719875432375,-440.06610721,0.00013704,2]
[330861143,1719875432383,-169.46,0.00013813,2]
[330861144,1719875432392,-384.99357971,0.0001383,2]
[330861145,1719875432401,-166.66,0.0001389,3]
[330861146,1719875432410,-1380.40369576,0.00013899,2]
[330861147,1719875432419,-1206.9525,0.000139,2]
[330861148,1719875432428,-169.88866674,0.000139,2]
[330861149,1719875432437,-215.83609171,0.000139,2]
[330861150,1719875432445,-167.64494156,0.000139,2]
[330861151,1719875432454,-1163.20560952,0.000139,2]
[330861152,1719875432463,-814.39961927,0.000139,2]
[330861153,1719875432472,-1501.28936377,0.000139,2]
[330861154,1719875432487,-322.6471014,0.000139,2]
[330861155,1719875432496,-1304.14832464,0.000139,2]
[330861156,1719875432506,-207.51,0.00013947,2]
[330861157,1719875432515,-625.64470959,0.00013989,2]
[330861158,1719875432524,-178.24084393,0.0001399,2]
[330861159,1719875432536,-659.48,0.0001399,3]
[330861160,1719875432545,-240.38467831,0.00013998,2]
[330861161,1719875432557,-1000.0,0.00013999,2]
[330861162,1719875432566,-3867.59,0.00013999,2]
[330861163,1719875432575,-299.99,0.00013999,2]
[330861164,1719875432584,-981.87,0.00013999,2]
[330861165,1719875432597,-221.49252962,0.00013999,2]
[330861166,1719875432606,-207.07337488,0.00013999,2]
[330861167,1719875432617,-4717.97340558,0.00013999,2]
[330861168,1719875432628,-3484.07659442,0.00013999,2]
[330861169,1719875432638,-227.28835865,0.00013999,2]
[330861170,1719875432649,-389809.39593544,0.00014,2]
[330861171,1719875432661,-1071.32430337,0.00014,2]
[330861172,1719875432672,-829.59060237,0.00014,2]
[330861173,1719875432684,-407.12126219,0.00014,2]
[330861174,1719875432700,-405.29682688,0.00014,2]
[330861180,1719875438270,-7930.2127496,0.00014,2]
[330861181,1719875438282,-310.05151531,0.00014,2]
[330861182,1719875438424,-9551.3770682,0.00014,2]
[330861183,1719875438437,-29419.7076725,0.00014,2]
[330861184,1719875438449,-539.12169097,0.00014,2]
[330861185,1719875438460,-358.04565465,0.00014,2]
[330861186,1719875438472,-1946.84804227,0.00014,2]
[330861187,1719875438488,-12338.90693721,0.00014,2]
[330861188,1719875438500,-1539863.81174715,0.00014,2]
[330861189,1719875438510,-500.0,0.00014,2]
[330861190,1719875438520,-778.73932,0.00014,2]
[330861191,1719875438530,-217.875524,0.00014,2]
[330861192,1719875438539,-217.875524,0.00014,2]
[330861193,1719875438549,-151.0,0.00014,2]
[330861194,1719875438560,-242.491234,0.00014,2]
[330861195,1719875438569,-242.491234,0.00014,2]
[330861196,1719875438579,-151.0,0.00014,2]
[330861197,1719875438588,-151.0,0.00014,2]
[330861198,1719875438598,-151.0,0.00014,2]
[330861199,1719875438607,-365.6,0.00014,2]
[330861200,1719875438617,-217.875524,0.00014005,2]
[330861201,1719875438626,-217.875524,0.00014005,2]
[330861202,1719875438635,-242.491234,0.00014005,2]
[330861203,1719875438645,-242.491234,0.00014005,2]
[330861204,1719875438654,-151.0,0.00014005,2]
[330861205,1719875438664,-151.0,0.00014005,2]
[330861206,1719875438673,-176.003726,0.00014005,2]
[330861207,1719875438682,-176.003726,0.00014005,2]
[330861208,1719875438692,-2441.214553,0.00014005,2]
[330861209,1719875438701,-151.0,0.00014005,2]
[330861210,1719875438711,-2441.214553,0.00014005,2]
[330861211,1719875438721,-151.0,0.00014005,2]
[330861212,1719875438730,-480.963949,0.00014005,2]
[330861213,1719875438740,-480.963949,0.00014005,2]
[330861214,1719875438750,-151.0,0.00014005,2]
[330861215,1719875438760,-386.317618,0.00014005,2]
[330861216,1719875438769,-10000.0,0.00014005,2]
[330861217,1719875438779,-650.69302056,0.00014099,2]
[330861218,1719875438788,-363.58934432,0.00014393,2]
[330861219,1719875438797,-301.37576212,0.00014393,2]
[330861220,1719875438807,-206.17373388,0.00014393,2]
[330861221,1719875438816,-155.30226453,0.00014393,2]
[330861222,1719875438825,-155.29654506,0.00014499,2]
[330861223,1719875438835,-517.9671284,0.00014499,2]
[330861224,1719875438845,-155.0,0.00014499,2]
[330861225,1719875438855,-155.0,0.00014499,2]
[330861226,1719875438864,-155.0,0.00014499,2]
[330861227,1719875438875,-155.0,0.00014499,2]
[330861228,1719875438884,-250.0,0.00014574,2]
[330861229,1719875438894,-169.39,0.00014613,2]
[330861230,1719875438903,-250.0,0.00014638,2]
[330861231,1719875438913,-1280.15,0.00014657,2]
[330861232,1719875438922,-1304.14832464,0.00014673,2]
[330861233,1719875438932,-151.0,0.00014844,2]
[330861234,1719875438941,-151.0,0.00014844,2]
[330861235,1719875438950,-151.0,0.00014844,2]
[330861236,1719875438960,-162.060796,0.00014844,2]
[330861237,1719875438969,-151.0,0.00014844,2]
[330861238,1719875438979,-151.0,0.00014844,2]
[330861239,1719875438988,-151.0,0.00014844,2]
[330861240,1719875438999,-197.228448,0.00014844,2]
[330861241,1719875439008,-151.0,0.00014844,2]
[330861242,1719875439017,-151.0,0.00014844,2]
[330861243,1719875439027,-151.0,0.00014844,2]
[330861244,1719875439036,-151.0,0.00014844,2]
[330861245,1719875439046,-161.406701,0.00014844,2]
[330861246,1719875439056,-151.0,0.00014844,2]
[330861247,1719875439066,-161.406701,0.00014844,2]
[330861248,1719875439076,-151.0,0.00014844,2]
[330861249,1719875439086,-151.0,0.00014844,2]
[330861250,1719875439097,-151.0,0.00014844,2]
[330861251,1719875439107,-151.0,0.00014844,2]
[330861252,1719875439117,-151.0,0.00014844,2]
[330861253,1719875439127,-151.0,0.00014844,2]
[330861254,1719875439137,-151.0,0.00014844,2]
[330861255,1719875439147,-217.875524,0.00014844,2]
[330861256,1719875439157,-217.875524,0.00014844,2]
[330861257,1719875439167,-217.875524,0.00014844,2]
[330861258,1719875439177,-217.875524,0.00014844,2]
[330861259,1719875439186,-242.491234,0.00014844,2]
[330861260,1719875439196,-242.491234,0.00014844,2]
[330861261,1719875439205,-242.491234,0.00014844,2]
[330861262,1719875439215,-242.491234,0.00014844,2]
[330861263,1719875439225,-176.003726,0.00014844,2]
[330861264,1719875439234,-176.003726,0.00014844,2]
[330861265,1719875439243,-176.003726,0.00014844,2]
[330861266,1719875439253,-176.003726,0.00014844,2]
[330861267,1719875439263,-2441.214553,0.00014844,2]
[330861268,1719875439272,-2441.214553,0.00014844,2]
[330861269,1719875439282,-151.0,0.00014844,2]
[330861270,1719875439291,-2441.214553,0.00014844,2]
[330861271,1719875439300,-2441.214553,0.00014844,2]
[330861272,1719875439311,-172.121136,0.00014844,2]
[330861273,1719875439320,-480.963949,0.00014844,2]
[330861274,1719875439330,-480.963949,0.00014844,2]
[330861275,1719875439340,-480.963949,0.00014844,2]
[330861276,1719875439350,-480.963949,0.00014844,2]
[330861277,1719875439360,-151.0,0.00014844,2]
[330861278,1719875439370,-157.065682,0.00014844,2]
[330861279,1719875439379,-386.317618,0.00014844,2]
[330861280,1719875439389,-386.317618,0.00014844,2]
[330861281,1719875439399,-814.39961927,0.00014844,2]
[330861282,1719875439410,-196.39295394,0.00014849,2]
[330861283,1719875439420,-227.0716558,0.00014849,2]
[330861284,1719875439431,-155.0,0.00014899,2]
[330861285,1719875439441,-1263.08088063,0.00014999,2]
[330861286,1719875439451,-5000.0,0.00015,2]
[330861287,1719875439461,-3968.30247288,0.00015,2]
[330861288,1719875439471,-151.0,0.000152,2]
[330861289,1719875439485,-151.0,0.000152,2]
[330861290,1719875439495,-151.0,0.000152,2]
[330861291,1719875439506,-151.0,0.000152,2]
[330861292,1719875439516,-151.0,0.000152,2]
[330861293,1719875439527,-151.0,0.000152,2]
[330861294,1719875439537,-151.0,0.000152,2]
[330861295,1719875439547,-151.0,0.000152,2]
[330861296,1719875439558,-151.0,0.000152,2]
[330861297,1719875439567,-219.998442,0.000152,2]
[330861298,1719875439577,-161.406701,0.000152,2]
[330861299,1719875439586,-161.406701,0.000152,2]
[330861300,1719875439596,-151.0,0.000152,2]
[330861301,1719875439606,-151.0,0.000152,2]
[330861302,1719875439616,-151.0,0.000152,2]
[330861303,1719875439625,-151.0,0.000152,2]
[330861304,1719875439634,-151.0,0.000152,2]
[330861305,1719875439644,-151.0,0.000152,2]
[330861306,1719875439654,-217.875524,0.000152,2]
[330861307,1719875439663,-217.875524,0.000152,2]
[330861308,1719875439672,-242.491234,0.000152,2]
[330861309,1719875439682,-242.491234,0.000152,2]
[330861310,1719875439691,-176.003726,0.000152,2]
[330861311,1719875439700,-176.003726,0.000152,2]
[330861312,1719875439710,-176.003726,0.000152,2]
[330861313,1719875439719,-176.003726,0.000152,2]
[330861314,1719875439728,-2441.214553,0.000152,2]
[330861315,1719875439738,-2441.214553,0.000152,2]
[330861316,1719875439748,-2441.214553,0.000152,2]
[330861317,1719875439757,-2441.214553,0.000152,2]
[330861318,1719875439767,-480.963949,0.000152,2]
[330861319,1719875439776,-480.963949,0.000152,2]
[330861320,1719875439785,-480.963949,0.000152,2]
[330861321,1719875439795,-480.963949,0.000152,2]
[330861322,1719875439805,-217.875524,0.00015218,2]
[330861323,1719875439815,-217.875524,0.00015218,2]
[330861324,1719875439824,-242.491234,0.00015218,2]
[330861325,1719875439834,-242.491234,0.00015218,2]
[330861326,1719875439844,-500.0,0.00015218,2]
[330861327,1719875439854,-163.78677907,0.00015287,2]
[330861328,1719875439863,-151.0,0.00015335,2]
[330861329,1719875439873,-151.0,0.00015335,2]
[330861330,1719875439882,-151.0,0.00015335,2]
[330861331,1719875439892,-151.0,0.00015335,2]
[330861332,1719875439901,-151.0,0.00015335,2]
[330861333,1719875439911,-151.0,0.00015335,2]
[330861334,1719875439920,-151.0,0.00015335,2]
[330861335,1719875439930,-161.406701,0.00015335,2]
[330861336,1719875439939,-161.406701,0.00015335,2]
[330861337,1719875439949,-151.0,0.00015335,2]
[330861338,1719875439958,-180.72192,0.00015335,2]
[330861339,1719875439968,-151.0,0.00015335,2]
[330861340,1719875439977,-176.003726,0.00015335,2]
[330861341,1719875439987,-176.003726,0.00015335,2]
[330861342,1719875439996,-2441.214553,0.00015335,2]
[330861343,1719875440005,-2441.214553,0.00015335,2]
[330861344,1719875440015,-480.963949,0.00015335,2]
[330861345,1719875440025,-480.963949,0.00015335,2]
[330861346,1719875440035,-186.52661499,0.00015399,2]
[330861347,1719875440045,-978.16242731,0.00015399,2]
[330861348,1719875440055,-151.0,0.000154,2]
[330861349,1719875440064,-151.0,0.000154,2]
[330861350,1719875440074,-172.0,0.000154,2]
[330861351,1719875440083,-151.0,0.000154,2]
[330861352,1719875440092,-227.341681,0.000154,2]
[330861353,1719875440101,-227.341681,0.000154,2]
[330861354,1719875440111,-151.0,0.000154,2]
[330861355,1719875440120,-151.0,0.000154,2]
[330861356,1719875440129,-151.0,0.000154,2]
[330861357,1719875440139,-151.0,0.000154,2]
[330861358,1719875440148,-151.0,0.000154,2]
[330861359,1719875440158,-151.0,0.000154,2]
[330861360,1719875440167,-151.0,0.000154,2]
[330861361,1719875440176,-217.875524,0.000154,2]
[330861362,1719875440185,-217.875524,0.000154,2]
[330861363,1719875440195,-242.491234,0.000154,2]
[330861364,1719875440204,-242.491234,0.000154,2]
[330861365,1719875440213,-1304.14832464,0.00015445,2]
[330861366,1719875440223,-400.09114959,0.00015479,2]
[330861367,1719875440232,-151.0,0.00015479,2]
[330861368,1719875440241,-160.441254,0.00015479,2]
[330861369,1719875440251,-151.0,0.00015479,2]
[330861370,1719875440260,-227.341681,0.00015479,2]
[330861371,1719875440269,-227.341681,0.00015479,2]
[330861372,1719875440279,-151.0,0.00015479,2]
[330861373,1719875440288,-165.509082,0.00015479,2]
[330861374,1719875440298,-151.0,0.00015479,2]
[330861375,1719875440307,-151.0,0.00015479,2]
[330861376,1719875440316,-151.0,0.00015479,2]
[330861377,1719875440325,-151.0,0.00015479,2]
[330861378,1719875440335,-151.0,0.00015479,2]
[330861379,1719875440346,-151.0,0.00015479,2]
[330861380,1719875440355,-151.0,0.00015479,2]
[330861381,1719875440364,-151.0,0.00015479,2]
[330861382,1719875440374,-151.0,0.00015479,2]
[330861383,1719875440383,-151.0,0.00015479,2]
[330861384,1719875440392,-161.406701,0.00015479,2]
[330861385,1719875440401,-161.406701,0.00015479,2]
[330861386,1719875440410,-161.406701,0.00015479,2]
[330861387,1719875440419,-161.406701,0.00015479,2]
[330861388,1719875440428,-151.0,0.00015479,2]
[330861389,1719875440437,-151.0,0.00015479,2]
[330861390,1719875440447,-217.875524,0.00015479,2]
[330861391,1719875440456,-217.875524,0.00015479,2]
[330861392,1719875440465,-242.491234,0.00015479,2]
[330861393,1719875440474,-242.491234,0.00015479,2]
[330861394,1719875440489,-176.003726,0.00015479,2]
[330861395,1719875440498,-176.003726,0.00015479,2]
[330861396,1719875440507,-176.003726,0.00015479,2]
[330861397,1719875440516,-176.003726,0.00015479,2]
[330861398,1719875440526,-2441.214553,0.00015479,2]
[330861399,1719875440535,-2441.214553,0.00015479,2]
[330861400,1719875440544,-2441.214553,0.00015479,2]
[330861401,1719875440553,-2441.214553,0.00015479,2]
[330861402,1719875440565,-480.963949,0.00015479,2]
[330861403,1719875440574,-480.963949,0.00015479,2]
[330861404,1719875440583,-480.963949,0.00015479,2]
[330861405,1719875440592,-480.963949,0.00015479,2]
[330861406,1719875440604,-247.94,0.00015519,2]
[330861407,1719875440613,-247.94,0.00015523,2]
[330861408,1719875440623,-247.94,0.00015528,2]
[330861409,1719875440632,-247.94,0.00015532,2]
[330861410,1719875440641,-151.0,0.00015532,2]
[330861411,1719875440651,-151.0,0.00015532,2]
[330861412,1719875440661,-217.875524,0.00015532,2]
[330861413,1719875440671,-217.875524,0.00015532,2]
[330861414,1719875440680,-242.491234,0.00015532,2]
[330861415,1719875440689,-242.491234,0.00015532,2]
[330861416,1719875440699,-151.0,0.00015535,2]
[330861417,1719875440709,-151.0,0.00015535,2]
[330861418,1719875440719,-206.604807,0.00015535,2]
[330861419,1719875440729,-151.0,0.00015535,2]
[330861420,1719875440738,-151.0,0.00015535,2]
[330861421,1719875440748,-247.94,0.00015536,2]
[330861422,1719875440758,-247.94,0.0001554,2]
[330861423,1719875440767,-151.0,0.0001554,2]
[330861424,1719875440776,-161.406701,0.0001554,2]
[330861425,1719875440786,-161.406701,0.0001554,2]
[330861426,1719875440795,-176.003726,0.0001554,2]
[330861427,1719875440804,-176.003726,0.0001554,2]
[330861428,1719875440814,-2441.214553,0.0001554,2]
[330861429,1719875440823,-2441.214553,0.0001554,2]
[330861430,1719875440832,-480.963949,0.0001554,2]
[330861431,1719875440842,-480.963949,0.0001554,2]
[330861432,1719875440853,-247.94,0.00015544,2]
[330861433,1719875440862,-247.94,0.00015548,2]
[330861434,1719875440871,-151.0,0.00015552,2]
[330861435,1719875440880,-151.0,0.00015552,2]
[330861436,1719875440889,-247.94,0.00015552,2]
[330861437,1719875440899,-217.875524,0.00015556,2]
[330861438,1719875440908,-217.875518,0.00015556,2]
[330861439,1719875440918,-242.491234,0.00015556,2]
[330861440,1719875440927,-242.491235,0.00015556,2]
[330861441,1719875440937,-247.94,0.00015556,2]
[330861442,1719875440946,-247.94,0.0001556,2]
[330861444,1719875440956,-247.94,0.00015564,2]
[330861446,1719875440965,-247.94,0.00015568,2]
[330861447,1719875440974,-247.94,0.00015572,2]
[330861449,1719875440983,-247.94,0.00015577,2]
[330861451,1719875440992,-151.0,0.00015579,2]
[330861454,1719875441001,-160.441254,0.00015579,2]
[330861457,1719875441012,-227.341681,0.00015579,2]
[330861460,1719875441022,-227.341681,0.00015579,2]
[330861463,1719875441031,-151.0,0.00015579,2]
[330861465,1719875441040,-151.0,0.00015579,2]
[330861467,1719875441050,-151.0,0.00015579,2]
[330861469,1719875441059,-151.0,0.00015579,2]
[330861470,1719875441069,-151.0,0.00015579,2]